[Event "Titled Tuesday Blitz January 31 Late 2023"]
[White "Shapiro, Viktor"]
[Black "Trost, Edvin"]
[WhiteFideId "4175700"]
[BlackFideId "1729519"]
[WhiteElo "2192"]
[BlackElo "2399"]
[Result "1-0"]
[Round "06"]
[TimeControl "180+2"]
[Date "2023.01.31"]
[WhiteClock "0:00:21"]
[BlackClock "0:00:15"]

1. c4 {[%clk 0:03:00]}  e6 {[%clk 0:02:57]} 2. Nc3 {[%clk 0:03:01]}  d5 {[%clk 0:02:58]} 3. g3 {[%clk 0:03:01]}  d4 {[%clk 0:02:56]} 4. Na4 {[%clk 0:03:00]}  e5 {[%clk 0:02:50]} 5. Bg2 {[%clk 0:03:00]}  Nc6 {[%clk 0:02:49]} 6. d3 {[%clk 0:03:00]}  Bb4+ {[%clk 0:02:46]} 7. Bd2 {[%clk 0:03:00]}  Be7 {[%clk 0:02:47]} 8. Nf3 {[%clk 0:02:58]}  Nf6 {[%clk 0:02:46]} 9. O-O {[%clk 0:02:49]}  O-O {[%clk 0:02:46]} 10. b4 {[%clk 0:02:49]}  e4 {[%clk 0:02:39]} 11. dxe4 {[%clk 0:02:49]}  Nxe4 {[%clk 0:02:39]} 12. b5 {[%clk 0:02:47]}  Nb8 {[%clk 0:02:36]} 13. Bf4 {[%clk 0:02:35]}  Bf6 {[%clk 0:02:35]} 14. Be5 {[%clk 0:02:22]}  Bxe5 {[%clk 0:02:14]} 15. Nxe5 {[%clk 0:02:21]}  Nf6 {[%clk 0:02:14]} 16. Nf3 {[%clk 0:02:18]}  Be6 {[%clk 0:02:03]} 17. Qxd4 {[%clk 0:02:15]}  Nbd7 {[%clk 0:01:57]} 18. Ng5 {[%clk 0:02:10]}  Nb6 {[%clk 0:01:55]} 19. Nxe6 {[%clk 0:02:08]}  fxe6 {[%clk 0:01:55]} 20. Qxd8 {[%clk 0:02:08]}  Raxd8 {[%clk 0:01:56]} 21. Nxb6 {[%clk 0:02:07]}  axb6 {[%clk 0:01:56]} 22. Bxb7 {[%clk 0:02:07]}  Rd2 {[%clk 0:01:56]} 23. Bf3 {[%clk 0:02:04]}  Rfd8 {[%clk 0:01:52]} 24. a4 {[%clk 0:02:02]}  e5 {[%clk 0:01:53]} 25. e3 {[%clk 0:01:45]}  e4 {[%clk 0:01:53]} 26. Bg2 {[%clk 0:01:45]}  Ra8 {[%clk 0:01:47]} 27. Rfc1 {[%clk 0:01:29]}  Rf8 {[%clk 0:01:21]} 28. h3 {[%clk 0:01:07]}  Nd7 {[%clk 0:01:17]} 29. Rf1 {[%clk 0:01:03]}  Nc5 {[%clk 0:01:16]} 30. a5 {[%clk 0:01:03]}  Nb3 {[%clk 0:01:15]} 31. axb6 {[%clk 0:00:55]}  Nxa1 {[%clk 0:01:05]} 32. bxc7 {[%clk 0:00:55]}  Nb3 {[%clk 0:01:03]} 33. Bxe4 {[%clk 0:00:50]}  Nc5 {[%clk 0:00:53]} 34. Bf5 {[%clk 0:00:46]}  Nd7 {[%clk 0:00:48]} 35. Be6+ {[%clk 0:00:38]}  Kh8 {[%clk 0:00:48]} 36. c5 {[%clk 0:00:34]}  Re8 {[%clk 0:00:26]} 37. Rc1 {[%clk 0:00:20]}  g5 {[%clk 0:00:15]} 38. b6 {[%clk 0:00:19]}  Rf8 {[%clk 0:00:03]} 39. b7 {[%clk 0:00:09]}  Rfxf2 {[%clk 0:00:03]} 40. c8=Q+ {[%clk 0:00:09]}  Kg7 {[%clk 0:00:04]} 41. Qxd7+ {[%clk 0:00:09]}  Rxd7 {[%clk 0:00:04]} 42. Bxd7 {[%clk 0:00:10]}  Rb2 {[%clk 0:00:05]} 43. c6 {[%clk 0:00:10]}  Rb1 {[%clk 0:00:05]} 44. Rxb1 {[%clk 0:00:10]}  g4 {[%clk 0:00:06]} 45. c7 {[%clk 0:00:11]}  gxh3 {[%clk 0:00:07]} 46. c8=Q {[%clk 0:00:11]}  h2+ {[%clk 0:00:07]} 47. Kxh2 {[%clk 0:00:12]}  h5 {[%clk 0:00:08]} 48. Qc5 {[%clk 0:00:12]}  h4 {[%clk 0:00:09]} 49. Rb6 {[%clk 0:00:13]}  hxg3+ {[%clk 0:00:10]} 50. Kg2 {[%clk 0:00:12]}  Kh8 {[%clk 0:00:11]} 51. Qd4+ {[%clk 0:00:13]}  Kg8 {[%clk 0:00:11]} 52. Qg4+ {[%clk 0:00:13]}  Kf8 {[%clk 0:00:11]} 53. Rf6+ {[%clk 0:00:14]}  Ke7 {[%clk 0:00:12]} 54. Qg7+ {[%clk 0:00:15]}  Kd8 {[%clk 0:00:13]} 55. Rf8+ {[%clk 0:00:16]}  Kc7 {[%clk 0:00:13]} 56. Bg4+ {[%clk 0:00:17]}  Kd6 {[%clk 0:00:13]} 57. Rf6+ {[%clk 0:00:18]}  Kd5 {[%clk 0:00:14]} 58. Qg5+ {[%clk 0:00:18]}  Ke4 {[%clk 0:00:14]} 59. Qf4+ {[%clk 0:00:19]}  Kd3 {[%clk 0:00:15]} 60. Rd6+ {[%clk 0:00:19]}  Kc2 {[%clk 0:00:15]} 61. Qc4+ {[%clk 0:00:20]}  Kb1 {[%clk 0:00:15]} 62. Rb6+ {[%clk 0:00:20]}  Ka1 {[%clk 0:00:15]} 63. Qa6# {[%clk 0:00:21]} 1-0


[Site "https://www.chess.com"]

[Event "Titled Tuesday Blitz January 31 Late 2023"]
[White "O`Gorman, Tom"]
[Black "Paveto, Kevin"]
[WhiteFideId "2508249"]
[BlackFideId "173444"]
[WhiteElo "2355"]
[BlackElo "2427"]
[Result "1-0"]
[Round "06"]
[TimeControl "180+2"]
[Date "2023.01.31"]
[WhiteClock "0:00:09"]
[BlackClock "0:00:17"]

1. d4 {[%clk 0:03:00]}  Nf6 {[%clk 0:03:00]} 2. c4 {[%clk 0:03:00]}  g6 {[%clk 0:03:00]} 3. Nf3 {[%clk 0:02:58]}  Bg7 {[%clk 0:03:00]} 4. g3 {[%clk 0:02:59]}  d5 {[%clk 0:03:00]} 5. Bg2 {[%clk 0:02:58]}  dxc4 {[%clk 0:03:00]} 6. O-O {[%clk 0:02:58]}  Ne4 {[%clk 0:03:00]} 7. Qc2 {[%clk 0:02:54]}  Nd6 {[%clk 0:03:00]} 8. e4 {[%clk 0:02:54]}  O-O {[%clk 0:02:59]} 9. Nc3 {[%clk 0:02:50]}  Nc6 {[%clk 0:02:59]} 10. Rd1 {[%clk 0:02:49]}  Nb4 {[%clk 0:02:57]} 11. Qe2 {[%clk 0:02:48]}  Nd3 {[%clk 0:02:57]} 12. Be3 {[%clk 0:02:45]}  c6 {[%clk 0:02:48]} 13. b3 {[%clk 0:02:42]}  b5 {[%clk 0:02:48]} 14. bxc4 {[%clk 0:02:28]}  bxc4 {[%clk 0:02:49]} 15. Rab1 {[%clk 0:02:28]}  Ba6 {[%clk 0:02:41]} 16. Qc2 {[%clk 0:02:15]}  Nb5 {[%clk 0:02:36]} 17. Nxb5 {[%clk 0:01:10]}  cxb5 {[%clk 0:02:34]} 18. d5 {[%clk 0:01:09]}  e5 {[%clk 0:02:09]} 19. a3 {[%clk 0:00:57]}  Qd6 {[%clk 0:02:08]} 20. Bf1 {[%clk 0:00:52]}  Rfc8 {[%clk 0:01:57]} 21. Bxd3 {[%clk 0:00:39]}  cxd3 {[%clk 0:01:56]} 22. Qb3 {[%clk 0:00:40]}  Rc4 {[%clk 0:01:32]} 23. Nd2 {[%clk 0:00:37]}  Ra4 {[%clk 0:01:32]} 24. Ra1 {[%clk 0:00:36]}  Bf8 {[%clk 0:01:26]} 25. Qxd3 {[%clk 0:00:33]}  b4 {[%clk 0:01:07]} 26. Nc4 {[%clk 0:00:28]}  Bxc4 {[%clk 0:01:06]} 27. Qxc4 {[%clk 0:00:29]}  Rxa3 {[%clk 0:01:06]} 28. Rxa3 {[%clk 0:00:23]}  bxa3 {[%clk 0:01:07]} 29. Qc6 {[%clk 0:00:19]}  Rd8 {[%clk 0:01:04]} 30. Qa4 {[%clk 0:00:16]}  a6 {[%clk 0:01:02]} 31. Rc1 {[%clk 0:00:15]}  Qd7 {[%clk 0:00:58]} 32. Qxa6 {[%clk 0:00:14]}  Qg4 {[%clk 0:00:56]} 33. Qa4 {[%clk 0:00:13]}  Rxd5 {[%clk 0:00:50]} 34. h3 {[%clk 0:00:11]}  Rd4 {[%clk 0:00:44]} 35. Bxd4 {[%clk 0:00:11]}  Qxe4 {[%clk 0:00:41]} 36. Rc8 {[%clk 0:00:06]}  exd4 {[%clk 0:00:37]} 37. Qxa3 {[%clk 0:00:05]}  Qe1+ {[%clk 0:00:34]} 38. Kg2 {[%clk 0:00:06]}  Qe4+ {[%clk 0:00:30]} 39. Kh2 {[%clk 0:00:06]}  Kg7 {[%clk 0:00:19]} 40. Qxf8+ {[%clk 0:00:07]}  Kf6 {[%clk 0:00:19]} 41. Qh8+ {[%clk 0:00:07]}  Kg5 {[%clk 0:00:18]} 42. Rc5+ {[%clk 0:00:07]}  f5 {[%clk 0:00:15]} 43. Qd8+ {[%clk 0:00:07]}  Kh6 {[%clk 0:00:15]} 44. Qh4+ {[%clk 0:00:07]}  Qxh4 {[%clk 0:00:14]} 45. gxh4 {[%clk 0:00:08]}  Kh5 {[%clk 0:00:15]} 46. Rd5 {[%clk 0:00:07]}  Kxh4 {[%clk 0:00:16]} 47. Rxd4+ {[%clk 0:00:08]}  Kg5 {[%clk 0:00:17]} 48. Kg3 {[%clk 0:00:08]}  Kh5 {[%clk 0:00:17]} 49. h4 {[%clk 0:00:08]}  h6 {[%clk 0:00:17]} 50. Rd5 {[%clk 0:00:09]} 1-0


[Site "https://www.chess.com"]

[Event "Titled Tuesday Blitz January 31 Late 2023"]
[White "Hambleton, Aman"]
[Black "Poltorak, Sebastian"]
[WhiteFideId "2606577"]
[BlackFideId "1199498"]
[WhiteElo "2420"]
[BlackElo "2354"]
[Result "1/2-1/2"]
[Round "06"]
[TimeControl "180+2"]
[Date "2023.01.31"]
[WhiteClock "0:00:03"]
[BlackClock "0:00:10"]

1. d4 {[%clk 0:03:00]}  Nf6 {[%clk 0:03:00]} 2. Bf4 {[%clk 0:02:59]}  b6 {[%clk 0:03:00]} 3. e3 {[%clk 0:02:59]}  Bb7 {[%clk 0:03:00]} 4. h3 {[%clk 0:02:59]}  g6 {[%clk 0:03:00]} 5. Nf3 {[%clk 0:02:58]}  Bg7 {[%clk 0:03:01]} 6. Be2 {[%clk 0:02:58]}  O-O {[%clk 0:03:01]} 7. O-O {[%clk 0:02:58]}  d6 {[%clk 0:03:00]} 8. a4 {[%clk 0:02:58]}  a6 {[%clk 0:03:00]} 9. Bh2 {[%clk 0:02:53]}  Nfd7 {[%clk 0:02:57]} 10. c4 {[%clk 0:02:49]}  e5 {[%clk 0:02:58]} 11. Nc3 {[%clk 0:02:49]}  Nc6 {[%clk 0:02:53]} 12. Nd5 {[%clk 0:02:19]}  Ne7 {[%clk 0:02:50]} 13. Nxe7+ {[%clk 0:02:17]}  Qxe7 {[%clk 0:02:50]} 14. a5 {[%clk 0:02:18]}  Rfd8 {[%clk 0:02:28]} 15. Re1 {[%clk 0:02:03]}  d5 {[%clk 0:02:19]} 16. axb6 {[%clk 0:01:02]}  cxb6 {[%clk 0:02:14]} 17. cxd5 {[%clk 0:01:02]}  Bxd5 {[%clk 0:02:09]} 18. Bxa6 {[%clk 0:00:53]}  Qb4 {[%clk 0:01:57]} 19. Qa4 {[%clk 0:00:02]}  Qxa4 {[%clk 0:01:26]} 20. Rxa4 {[%clk 0:00:03]}  Bc6 {[%clk 0:01:27]} 21. Ra3 {[%clk 0:00:02]}  Bxf3 {[%clk 0:01:26]} 22. gxf3 {[%clk 0:00:02]}  exd4 {[%clk 0:01:27]} 23. Bb5 {[%clk 0:00:02]}  Rxa3 {[%clk 0:01:15]} 24. bxa3 {[%clk 0:00:03]}  Nc5 {[%clk 0:01:09]} 25. Rd1 {[%clk 0:00:02]}  Ne6 {[%clk 0:00:35]} 26. Bc4 {[%clk 0:00:02]}  dxe3 {[%clk 0:00:20]} 27. Rxd8+ {[%clk 0:00:03]}  Nxd8 {[%clk 0:00:21]} 28. fxe3 {[%clk 0:00:04]}  Bf8 {[%clk 0:00:21]} 29. a4 {[%clk 0:00:03]}  Bc5 {[%clk 0:00:22]} 30. Kf2 {[%clk 0:00:03]}  Kf8 {[%clk 0:00:21]} 31. Ke2 {[%clk 0:00:03]}  Ke7 {[%clk 0:00:21]} 32. Kd3 {[%clk 0:00:02]}  Nc6 {[%clk 0:00:19]} 33. e4 {[%clk 0:00:02]}  f6 {[%clk 0:00:19]} 34. Bd5 {[%clk 0:00:02]}  Ne5+ {[%clk 0:00:19]} 35. Ke2 {[%clk 0:00:02]}  g5 {[%clk 0:00:18]} 36. Bg3 {[%clk 0:00:02]}  Kd6 {[%clk 0:00:14]} 37. f4 {[%clk 0:00:02]}  gxf4 {[%clk 0:00:15]} 38. Bxf4 {[%clk 0:00:02]}  Bd4 {[%clk 0:00:14]} 39. Kd2 {[%clk 0:00:03]}  Kc5 {[%clk 0:00:14]} 40. Bg8 {[%clk 0:00:03]}  h5 {[%clk 0:00:13]} 41. Bxe5 {[%clk 0:00:01]}  Bxe5 {[%clk 0:00:09]} 42. Bf7 {[%clk 0:00:02]}  h4 {[%clk 0:00:09]} 43. Kd3 {[%clk 0:00:02]}  Kb4 {[%clk 0:00:10]} 44. Be8 {[%clk 0:00:03]} 1/2-1/2


[Site "https://www.chess.com"]

[Event "Titled Tuesday Blitz January 31 Late 2023"]
[White "Jaracz, Pawel"]
[Black "Schekachikhin, Maksim"]
[WhiteFideId "1102222"]
[BlackFideId "24177830"]
[WhiteElo "2467"]
[BlackElo "2371"]
[Result "1/2-1/2"]
[Round "06"]
[TimeControl "180+2"]
[Date "2023.01.31"]
[WhiteClock "0:00:05"]
[BlackClock "0:00:04"]

1. d4 {[%clk 0:03:00]}  d5 {[%clk 0:02:57]} 2. c4 {[%clk 0:03:01]}  e6 {[%clk 0:02:58]} 3. Nc3 {[%clk 0:03:00]}  Bb4 {[%clk 0:02:57]} 4. Qa4+ {[%clk 0:02:57]}  Nc6 {[%clk 0:02:56]} 5. e3 {[%clk 0:02:57]}  Nf6 {[%clk 0:02:54]} 6. Bd2 {[%clk 0:02:56]}  O-O {[%clk 0:02:53]} 7. Qc2 {[%clk 0:02:48]}  Re8 {[%clk 0:02:46]} 8. Nge2 {[%clk 0:02:38]}  e5 {[%clk 0:02:42]} 9. cxd5 {[%clk 0:02:32]}  Nxd5 {[%clk 0:02:41]} 10. a3 {[%clk 0:02:26]}  Nxc3 {[%clk 0:02:32]} 11. bxc3 {[%clk 0:02:23]}  Ba5 {[%clk 0:02:27]} 12. g3 {[%clk 0:02:09]}  Bg4 {[%clk 0:02:22]} 13. O-O-O {[%clk 0:02:02]}  exd4 {[%clk 0:02:15]} 14. cxd4 {[%clk 0:01:59]}  Qd6 {[%clk 0:01:56]} 15. Kb2 {[%clk 0:01:49]}  Bf3 {[%clk 0:01:50]} 16. Rg1 {[%clk 0:01:49]}  Be4 {[%clk 0:01:49]} 17. Qc1 {[%clk 0:01:19]}  Bf3 {[%clk 0:01:39]} 18. Re1 {[%clk 0:00:54]}  b5 {[%clk 0:00:42]} 19. Nf4 {[%clk 0:00:49]}  Bxd2 {[%clk 0:00:36]} 20. Qxd2 {[%clk 0:00:49]}  Rab8 {[%clk 0:00:31]} 21. Nd3 {[%clk 0:00:43]}  Na5 {[%clk 0:00:25]} 22. Qb4 {[%clk 0:00:33]}  Nc4+ {[%clk 0:00:23]} 23. Ka2 {[%clk 0:00:32]}  Qh6 {[%clk 0:00:18]} 24. h4 {[%clk 0:00:28]}  a5 {[%clk 0:00:17]} 25. Qc5 {[%clk 0:00:26]}  Qf6 {[%clk 0:00:14]} 26. Nf4 {[%clk 0:00:26]}  Nd2 {[%clk 0:00:10]} 27. Bd3 {[%clk 0:00:23]}  Ne4 {[%clk 0:00:10]} 28. Qc2 {[%clk 0:00:23]}  b4 {[%clk 0:00:09]} 29. Ka1 {[%clk 0:00:19]}  bxa3 {[%clk 0:00:08]} 30. Rb1 {[%clk 0:00:19]}  Nd6 {[%clk 0:00:08]} 31. Rxb8 {[%clk 0:00:18]}  Rxb8 {[%clk 0:00:08]} 32. Rb1 {[%clk 0:00:19]}  Rxb1+ {[%clk 0:00:07]} 33. Kxb1 {[%clk 0:00:18]}  g6 {[%clk 0:00:07]} 34. Qxc7 {[%clk 0:00:18]}  Ne4 {[%clk 0:00:05]} 35. Qb8+ {[%clk 0:00:16]}  Kg7 {[%clk 0:00:05]} 36. Bxe4 {[%clk 0:00:16]}  Bxe4+ {[%clk 0:00:05]} 37. Ka1 {[%clk 0:00:17]}  Qf5 {[%clk 0:00:04]} 38. Qe5+ {[%clk 0:00:16]}  Qxe5 {[%clk 0:00:04]} 39. dxe5 {[%clk 0:00:16]}  Kf8 {[%clk 0:00:05]} 40. Nh3 {[%clk 0:00:14]}  Bd5 {[%clk 0:00:04]} 41. Ng5 {[%clk 0:00:11]}  h6 {[%clk 0:00:04]} 42. Nh7+ {[%clk 0:00:11]}  Ke7 {[%clk 0:00:04]} 43. Nf6 {[%clk 0:00:12]}  Bb3 {[%clk 0:00:04]} 44. e4 {[%clk 0:00:11]}  Ke6 {[%clk 0:00:04]} 45. f4 {[%clk 0:00:12]}  g5 {[%clk 0:00:04]} 46. Ng4 {[%clk 0:00:08]}  gxf4 {[%clk 0:00:03]} 47. gxf4 {[%clk 0:00:09]}  Bc2 {[%clk 0:00:03]} 48. f5+ {[%clk 0:00:09]}  Ke7 {[%clk 0:00:03]} 49. Nf6 {[%clk 0:00:10]}  Bb3 {[%clk 0:00:02]} 50. Ng8+ {[%clk 0:00:10]}  Kf8 {[%clk 0:00:02]} 51. Nxh6 {[%clk 0:00:11]}  Bc2 {[%clk 0:00:03]} 52. Ng4 {[%clk 0:00:09]}  Bxe4 {[%clk 0:00:03]} 53. f6 {[%clk 0:00:09]}  Bd5 {[%clk 0:00:03]} 54. Ne3 {[%clk 0:00:08]}  Be6 {[%clk 0:00:03]} 55. Ng2 {[%clk 0:00:09]}  Kg8 {[%clk 0:00:03]} 56. Nf4 {[%clk 0:00:09]}  Bc4 {[%clk 0:00:03]} 57. Ng2 {[%clk 0:00:08]}  Kh7 {[%clk 0:00:04]} 58. Nf4 {[%clk 0:00:08]}  Kh6 {[%clk 0:00:03]} 59. Kb1 {[%clk 0:00:08]}  a4 {[%clk 0:00:03]} 60. Kc2 {[%clk 0:00:09]}  Bb3+ {[%clk 0:00:03]} 61. Kc3 {[%clk 0:00:09]}  a2 {[%clk 0:00:03]} 62. Kb2 {[%clk 0:00:09]}  Kh7 {[%clk 0:00:03]} 63. Ka1 {[%clk 0:00:09]}  Kh6 {[%clk 0:00:03]} 64. h5 {[%clk 0:00:07]}  Kh7 {[%clk 0:00:03]} 65. Kb2 {[%clk 0:00:07]}  Kh6 {[%clk 0:00:04]} 66. Ka1 {[%clk 0:00:05]}  Kh7 {[%clk 0:00:04]} 67. Kb2 {[%clk 0:00:04]}  Kh6 {[%clk 0:00:04]} 68. e6 {[%clk 0:00:04]}  fxe6 {[%clk 0:00:04]} 69. Ng6 {[%clk 0:00:04]}  e5 {[%clk 0:00:04]} 70. Nxe5 {[%clk 0:00:04]}  Kxh5 {[%clk 0:00:04]} 71. f7 {[%clk 0:00:03]}  Bxf7 {[%clk 0:00:04]} 72. Nxf7 {[%clk 0:00:04]}  Kg6 {[%clk 0:00:04]} 73. Nd6 {[%clk 0:00:04]}  a1=Q+ {[%clk 0:00:02]} 74. Kxa1 {[%clk 0:00:04]}  a3 {[%clk 0:00:03]} 75. Nc4 {[%clk 0:00:04]}  Kf6 {[%clk 0:00:04]} 76. Ka2 {[%clk 0:00:04]}  Ke6 {[%clk 0:00:04]} 77. Kxa3 {[%clk 0:00:05]} 1/2-1/2


[Site "https://www.chess.com"]

[Event "Titled Tuesday Blitz January 31 Late 2023"]
[White "Ismagilov, Damir"]
[Black "Harshavardhan G B"]
[WhiteFideId "34199982"]
[BlackFideId "25059009"]
[WhiteElo "2156"]
[BlackElo "2408"]
[Result "0-1"]
[Round "06"]
[TimeControl "180+2"]
[Date "2023.01.31"]
[WhiteClock "0:00:03"]
[BlackClock "0:00:38"]

1. e4 {[%clk 0:02:54]}  e5 {[%clk 0:02:59]} 2. Nf3 {[%clk 0:02:55]}  Nc6 {[%clk 0:02:59]} 3. Nc3 {[%clk 0:02:55]}  Nf6 {[%clk 0:02:58]} 4. a4 {[%clk 0:02:56]}  d5 {[%clk 0:02:54]} 5. Bb5 {[%clk 0:02:31]}  d4 {[%clk 0:02:34]} 6. Ne2 {[%clk 0:02:26]}  Bd6 {[%clk 0:02:30]} 7. d3 {[%clk 0:02:24]}  h6 {[%clk 0:02:26]} 8. h3 {[%clk 0:02:24]}  O-O {[%clk 0:02:24]} 9. Bxc6 {[%clk 0:02:22]}  bxc6 {[%clk 0:02:25]} 10. g4 {[%clk 0:02:22]}  Nh7 {[%clk 0:02:24]} 11. Ng3 {[%clk 0:02:20]}  Be6 {[%clk 0:02:18]} 12. b3 {[%clk 0:02:20]}  Ng5 {[%clk 0:02:11]} 13. Nxg5 {[%clk 0:02:13]}  hxg5 {[%clk 0:02:12]} 14. Nf5 {[%clk 0:02:13]}  g6 {[%clk 0:02:09]} 15. Nxd6 {[%clk 0:01:54]}  cxd6 {[%clk 0:02:10]} 16. Bd2 {[%clk 0:01:53]}  Kg7 {[%clk 0:02:06]} 17. Qf3 {[%clk 0:01:48]}  Rh8 {[%clk 0:02:02]} 18. Kf1 {[%clk 0:01:41]}  f6 {[%clk 0:01:58]} 19. Kg2 {[%clk 0:01:41]}  d5 {[%clk 0:01:57]} 20. Qe2 {[%clk 0:01:36]}  c5 {[%clk 0:01:55]} 21. f3 {[%clk 0:01:34]}  c4 {[%clk 0:01:52]} 22. exd5 {[%clk 0:01:32]}  cxd3 {[%clk 0:01:52]} 23. Qxd3 {[%clk 0:01:25]}  Bxd5 {[%clk 0:01:51]} 24. Rad1 {[%clk 0:01:18]}  Rc8 {[%clk 0:01:46]} 25. c4 {[%clk 0:01:04]}  Bb7 {[%clk 0:01:43]} 26. b4 {[%clk 0:00:57]}  Qe8 {[%clk 0:01:38]} 27. Rhe1 {[%clk 0:00:55]}  Qxa4 {[%clk 0:01:36]} 28. Ra1 {[%clk 0:00:54]}  Qc6 {[%clk 0:01:32]} 29. Rxa7 {[%clk 0:00:53]}  Ra8 {[%clk 0:01:30]} 30. Rea1 {[%clk 0:00:44]}  Rxa7 {[%clk 0:01:16]} 31. Rxa7 {[%clk 0:00:45]}  Ra8 {[%clk 0:01:17]} 32. Rxa8 {[%clk 0:00:38]}  Bxa8 {[%clk 0:01:17]} 33. Qa3 {[%clk 0:00:35]}  e4 {[%clk 0:01:15]} 34. b5 {[%clk 0:00:32]}  Qxc4 {[%clk 0:01:04]} 35. Qe7+ {[%clk 0:00:25]}  Qf7 {[%clk 0:01:02]} 36. Qxf7+ {[%clk 0:00:23]}  Kxf7 {[%clk 0:01:03]} 37. fxe4 {[%clk 0:00:24]}  Bxe4+ {[%clk 0:01:04]} 38. Kg3 {[%clk 0:00:22]}  Ke6 {[%clk 0:01:03]} 39. h4 {[%clk 0:00:21]}  gxh4+ {[%clk 0:01:04]} 40. Kxh4 {[%clk 0:00:22]}  Kd5 {[%clk 0:01:02]} 41. g5 {[%clk 0:00:19]}  f5 {[%clk 0:00:51]} 42. Kg3 {[%clk 0:00:20]}  Kc4 {[%clk 0:00:51]} 43. Kf2 {[%clk 0:00:20]}  Kxb5 {[%clk 0:00:49]} 44. Ke1 {[%clk 0:00:19]}  Kc4 {[%clk 0:00:49]} 45. Bf4 {[%clk 0:00:19]}  Kd3 {[%clk 0:00:49]} 46. Bc1 {[%clk 0:00:17]}  Bd5 {[%clk 0:00:49]} 47. Kd1 {[%clk 0:00:14]}  Bc4 {[%clk 0:00:48]} 48. Ke1 {[%clk 0:00:14]}  Bb5 {[%clk 0:00:48]} 49. Kf2 {[%clk 0:00:11]}  Bc6 {[%clk 0:00:47]} 50. Ke1 {[%clk 0:00:11]}  Ke4 {[%clk 0:00:46]} 51. Ke2 {[%clk 0:00:06]}  f4 {[%clk 0:00:46]} 52. Bb2 {[%clk 0:00:05]}  Bb5+ {[%clk 0:00:45]} 53. Kf2 {[%clk 0:00:05]}  d3 {[%clk 0:00:45]} 54. Bc3 {[%clk 0:00:05]}  Kf5 {[%clk 0:00:44]} 55. Bd2 {[%clk 0:00:05]}  Kxg5 {[%clk 0:00:43]} 56. Kf3 {[%clk 0:00:05]}  Bc6+ {[%clk 0:00:43]} 57. Kf2 {[%clk 0:00:06]}  Kf5 {[%clk 0:00:43]} 58. Be1 {[%clk 0:00:02]}  g5 {[%clk 0:00:43]} 59. Bd2 {[%clk 0:00:03]}  g4 {[%clk 0:00:43]} 60. Be1 {[%clk 0:00:04]}  g3+ {[%clk 0:00:42]} 61. Kg1 {[%clk 0:00:04]}  Kg4 {[%clk 0:00:42]} 62. Bd2 {[%clk 0:00:03]}  f3 {[%clk 0:00:42]} 63. Be3 {[%clk 0:00:03]}  Bb5 {[%clk 0:00:38]} 64. Bd2 {[%clk 0:00:03]}  f2+ {[%clk 0:00:37]} 65. Kf1 {[%clk 0:00:03]}  Kf3 {[%clk 0:00:37]} 66. Be1 {[%clk 0:00:03]}  g2# {[%clk 0:00:38]} 0-1


[Site "https://www.chess.com"]

[Event "Titled Tuesday Blitz January 31 Late 2023"]
[White "Khoroshev, Nikita"]
[Black "Ronka, Erik"]
[WhiteFideId "14200287"]
[BlackFideId "505080"]
[WhiteElo "2336"]
[BlackElo "2276"]
[Result "1-0"]
[Round "06"]
[TimeControl "180+2"]
[Date "2023.01.31"]
[WhiteClock "0:01:18"]
[BlackClock "0:00:08"]

1. e4 {[%clk 0:03:00]}  c5 {[%clk 0:02:59]} 2. c3 {[%clk 0:02:59]}  Nf6 {[%clk 0:02:58]} 3. e5 {[%clk 0:02:59]}  Nd5 {[%clk 0:02:59]} 4. d4 {[%clk 0:03:00]}  cxd4 {[%clk 0:02:59]} 5. Nf3 {[%clk 0:03:00]}  e6 {[%clk 0:03:00]} 6. cxd4 {[%clk 0:02:59]}  d6 {[%clk 0:03:00]} 7. Bc4 {[%clk 0:02:58]}  Be7 {[%clk 0:03:00]} 8. O-O {[%clk 0:02:58]}  O-O {[%clk 0:03:00]} 9. Qe2 {[%clk 0:02:58]}  Nc6 {[%clk 0:03:00]} 10. Rd1 {[%clk 0:02:58]}  Bd7 {[%clk 0:02:50]} 11. Nc3 {[%clk 0:02:48]}  Nxc3 {[%clk 0:02:39]} 12. bxc3 {[%clk 0:02:49]}  dxe5 {[%clk 0:02:39]} 13. dxe5 {[%clk 0:02:48]}  Qc7 {[%clk 0:02:36]} 14. Qe4 {[%clk 0:02:47]}  f5 {[%clk 0:02:15]} 15. exf6 {[%clk 0:02:43]}  Bxf6 {[%clk 0:02:15]} 16. Bxe6+ {[%clk 0:02:43]}  Bxe6 {[%clk 0:02:14]} 17. Qxe6+ {[%clk 0:02:44]}  Kh8 {[%clk 0:02:15]} 18. Ba3 {[%clk 0:02:35]}  Rfd8 {[%clk 0:02:01]} 19. h4 {[%clk 0:02:30]}  Bxc3 {[%clk 0:01:44]} 20. Rxd8+ {[%clk 0:02:11]}  Rxd8 {[%clk 0:01:36]} 21. Ng5 {[%clk 0:02:10]}  Qd7 {[%clk 0:00:23]} 22. Qb3 {[%clk 0:01:26]}  Bxa1 {[%clk 0:00:07]} 23. Nf7+ {[%clk 0:01:25]}  Kg8 {[%clk 0:00:08]} 24. Nxd8+ {[%clk 0:01:22]}  Kh8 {[%clk 0:00:08]} 25. Nf7+ {[%clk 0:01:19]}  Kg8 {[%clk 0:00:08]} 26. Nh6+ {[%clk 0:01:18]}  Kh8 {[%clk 0:00:08]} 27. Qg8# {[%clk 0:01:18]} 1-0


[Site "https://www.chess.com"]

[Event "Titled Tuesday Blitz January 31 Late 2023"]
[White "Wieczorek, Oskar"]
[Black "Golubev, Mikhail"]
[WhiteFideId "1133950"]
[BlackFideId "14100983"]
[WhiteElo "2512"]
[BlackElo "2461"]
[Result "0-1"]
[Round "06"]
[TimeControl "180+2"]
[Date "2023.01.31"]
[WhiteClock "0:01:13"]
[BlackClock "0:01:35"]

1. e4 {[%clk 0:03:00]}  c5 {[%clk 0:02:59]} 2. Nf3 {[%clk 0:03:01]}  d6 {[%clk 0:02:59]} 3. d4 {[%clk 0:03:00]}  cxd4 {[%clk 0:02:59]} 4. Nxd4 {[%clk 0:03:01]}  Nf6 {[%clk 0:02:59]} 5. Nc3 {[%clk 0:03:01]}  g6 {[%clk 0:03:00]} 6. Be2 {[%clk 0:03:00]}  Bg7 {[%clk 0:03:00]} 7. O-O {[%clk 0:03:00]}  O-O {[%clk 0:03:00]} 8. Re1 {[%clk 0:03:01]}  Nc6 {[%clk 0:03:00]} 9. Nb3 {[%clk 0:03:01]}  Be6 {[%clk 0:02:57]} 10. Bf1 {[%clk 0:02:54]}  d5 {[%clk 0:02:53]} 11. Nc5 {[%clk 0:02:54]}  d4 {[%clk 0:02:50]} 12. Nxe6 {[%clk 0:02:52]}  fxe6 {[%clk 0:02:51]} 13. Na4 {[%clk 0:02:39]}  Qa5 {[%clk 0:02:33]} 14. b3 {[%clk 0:02:29]}  Ng4 {[%clk 0:02:16]} 15. f3 {[%clk 0:01:56]}  Ne3 {[%clk 0:02:08]} 16. Bxe3 {[%clk 0:01:27]}  dxe3 {[%clk 0:02:09]} 17. Rb1 {[%clk 0:01:19]}  Rad8 {[%clk 0:02:00]} 18. Bd3 {[%clk 0:01:19]}  b5 {[%clk 0:01:51]} 19. Nc5 {[%clk 0:01:13]}  Bd4 {[%clk 0:01:46]} 20. c3 {[%clk 0:01:13]}  e2+ {[%clk 0:01:36]} 21. cxd4 {[%clk 0:01:12]}  exd1=Q {[%clk 0:01:36]} 22. Rbxd1 {[%clk 0:01:13]}  Nxd4 {[%clk 0:01:35]} 0-1


[Site "https://www.chess.com"]